lending/lending_fUSD_20251125
["ID","MTS","AMOUNT","RATE_DAILY","PERIOD"]
[394907533,1764108653765,-504.1283057,0.00038356,8]
[394907534,1764108653774,-567.87519484,0.00038356,8]
[394907535,1764108653783,-505.10838585,0.00038356,8]
[394907536,1764108653793,-509.31586831,0.00038356,8]
[394907537,1764108653802,-505.24623036,0.00038356,8]
[394907538,1764108653814,-512.92929762,0.00038356,8]
[394907539,1764108653824,-504.45441329,0.00038356,8]
[394907540,1764108653835,-503.22925861,0.00038356,8]
[394907541,1764108653845,-500.0,0.00038356,8]
[394907542,1764108653855,-508.40567095,0.00038356,8]
[394907543,1764108653866,-500.0,0.00038356,8]
[394907544,1764108653875,-500.0,0.00038356,8]
[394907545,1764108653885,-500.0,0.00038356,8]
[394907546,1764108653896,-500.0,0.00038356,8]
[394907547,1764108653905,-151.0,0.00038356,8]
[394907548,1764108653915,-743.49,0.00038356,8]
[394907549,1764108653925,-500.0,0.00038356,8]
[394907550,1764108653935,-292.2649795,0.00038356,8]
[394907551,1764108653944,-872.66,0.00038356,8]
[394907552,1764108653954,-500.0,0.00038356,8]
[394907553,1764108653964,-500.0,0.00038356,8]
[394907554,1764108653974,-223.60051766,0.00038356,8]
[394907555,1764108653984,-637.0,0.00038356,8]
[394907556,1764108653994,-515.70746822,0.00038356,8]
[394907557,1764108654004,-403.72728555,0.00038356,8]
[394907558,1764108654015,-500.0,0.00038356,8]
[394907559,1764108654025,-1067.59,0.00038356,8]
[394907560,1764108654035,-500.0,0.00038356,8]
[394907561,1764108654045,-1701.71,0.00038356,8]
[394907562,1764108654054,-500.0,0.00038356,8]
[394907563,1764108654066,-500.0,0.00038356,8]
[394907564,1764108654075,-500.0,0.00038356,2]
[394907565,1764108654086,-509.59211229,0.00038356,8]
[394907566,1764108654095,-517.46542,0.00038356,8]
[394907567,1764108654105,-500.0,0.00038356,8]
[394907568,1764108654115,-521.99,0.00038356,8]
[394907569,1764108654124,-500.0,0.00038356,2]
[394907570,1764108654134,-540.28256603,0.00038356,8]
[394907571,1764108654144,-308.62354798,0.00038356,2]
[394907572,1764108654154,-500.0,0.00038356,8]
[394907573,1764108654164,-500.0,0.00038356,2]
[394907574,1764108654174,-500.0,0.00038356,8]
[394907575,1764108654183,-1836.96,0.00038356,8]
[394907576,1764108654193,-510.2990712,0.00038356,8]
[394907577,1764108654203,-500.0,0.00038356,8]
[394907578,1764108654212,-536.29894877,0.00038356,8]
[394907579,1764108654222,-779.8,0.00038356,2]
[394907580,1764108654232,-300.0,0.00038356,2]
[394907581,1764108654243,-1722.3,0.00038356,8]
[394907582,1764108654252,-500.0,0.00038356,8]
[394907583,1764108654262,-500.0,0.00038356,8]
[394907584,1764108654271,-964.36,0.00038356,2]
[394907585,1764108654281,-597.58820766,0.00038356,8]
[394907586,1764108654290,-588.73,0.00038356,8]
[394907587,1764108654300,-500.0,0.00038356,8]
[394907588,1764108654312,-500.0,0.00038356,8]
[394907589,1764108654321,-500.0,0.00038356,8]
[394907590,1764108654330,-500.0,0.00038356,8]
[394907591,1764108654339,-500.0,0.00038356,8]
[394907592,1764108654348,-529.12237862,0.00038356,8]
[394907593,1764108654358,-500.0,0.00038356,120]
[394907594,1764108654369,-11006.19,0.00038356,8]
[394907595,1764108654378,-278.27375568,0.00038356,8]
[394907596,1764108654388,-500.0,0.00038356,8]
[394907597,1764108654398,-500.0,0.00038356,8]
[394907598,1764108654407,-508.04252661,0.00038356,8]
[394907599,1764108654417,-506.30415805,0.00038356,8]
[394907600,1764108654426,-517.79100704,0.00038356,8]
[394907601,1764108654435,-500.0,0.00038356,8]
[394907602,1764108654445,-509.84428727,0.00038356,8]
[394907603,1764108654455,-512.40842531,0.00038356,8]
[394907604,1764108654464,-504.16081682,0.00038356,8]
[394907605,1764108654473,-500.0,0.00038356,8]
[394907606,1764108654484,-508.40028795,0.00038356,8]
[394907607,1764108654495,-502.42551181,0.00038356,8]
[394907608,1764108654505,-500.0,0.00038356,8]
[394907609,1764108654515,-500.0,0.00038356,8]
[394907610,1764108654525,-510.71601117,0.00038356,8]
[394907611,1764108654534,-503.55,0.00038356,8]
[394907612,1764108654544,-500.0,0.00038356,8]
[394907613,1764108654553,-500.0,0.00038356,8]
[394907614,1764108654563,-519.5781132,0.00038356,8]
[394907615,1764108654573,-510.01959502,0.00038356,8]
[394907616,1764108654582,-500.0,0.00038356,8]
[394907617,1764108654591,-510.77262476,0.00038356,8]
[394907618,1764108654601,-504.16626632,0.00038356,8]
[394907619,1764108654610,-300.0,0.00038356,2]
[394907620,1764108654620,-351.29722625,0.00038356,8]
[394907621,1764108654630,-501.86730648,0.00038356,8]
[394907622,1764108654639,-795.28,0.00038356,8]
[394907623,1764108654650,-512.28049484,0.00038356,8]
[394907624,1764108654659,-506.44437179,0.00038356,8]
[394907625,1764108654670,-520.16838448,0.00038356,8]
[394907626,1764108654681,-500.0,0.00038356,8]
[394907627,1764108654693,-500.0,0.00038356,8]
[394907628,1764108654703,-527.44050011,0.00038356,8]
[394907629,1764108654714,-503.60721476,0.00038356,8]
[394907630,1764108654723,-504.32742834,0.00038356,8]
[394907631,1764108654733,-503.55053109,0.00038356,8]
[394907632,1764108654742,-508.8765863,0.00038356,8]
[394907633,1764108654751,-500.0,0.00038356,8]
[394907634,1764108654761,-502.94357103,0.00038356,8]
[394907635,1764108654770,-511.43372018,0.00038356,8]
[394907636,1764108654780,-9916.91,0.00038356,8]
[394907637,1764108654789,-504.60970845,0.00038356,8]
[394907638,1764108654799,-500.0,0.00038356,8]
[394907639,1764108654808,-159.28343057,0.00038356,8]
[394907640,1764108654818,-636.89371169,0.00038356,8]
[394907641,1764108654827,-506.34293505,0.00038356,8]
[394907642,1764108654837,-510.92341095,0.00038356,8]
[394907643,1764108654846,-291.20900665,0.00038356,8]
[394907644,1764108654856,-500.0,0.00038356,8]
[394907645,1764108654866,-500.0,0.00038356,8]
[394907646,1764108654875,-639.07509936,0.00038356,8]
[394907647,1764108654884,-164.91384417,0.00038356,8]
[394907648,1764108654894,-503.6379293,0.00038356,8]
[394907649,1764108654903,-433.93597628,0.00038356,8]
[394907650,1764108654912,-400.0,0.00038356,8]
[394907651,1764108654922,-500.0,0.00038356,8]
[394907652,1764108654931,-500.0,0.00038356,8]
[394907653,1764108654940,-501.43192674,0.00038356,8]
[394907654,1764108654949,-500.0,0.00038356,2]
[394907655,1764108654959,-500.0,0.00038356,8]
[394907656,1764108654969,-500.0,0.00038356,8]
[394907657,1764108654979,-500.0,0.00038356,8]
[394907658,1764108654988,-597.13282406,0.00038356,8]
[394907659,1764108654998,-497.5928,0.00038356,2]
[394907660,1764108655008,-504.59243688,0.00038356,8]
[394907661,1764108655018,-563.01994009,0.00038356,8]
[394907662,1764108655028,-500.0,0.00038356,8]
[394907663,1764108655038,-537.48101995,0.00038356,8]
[394907664,1764108655047,-544.91771781,0.00038356,8]
[394907665,1764108655057,-500.0,0.00038356,8]
[394907666,1764108655067,-618.22,0.00038356,8]
[394907667,1764108655077,-551.58807716,0.00038356,8]
[394907668,1764108655087,-569.52450525,0.00038356,8]
[394907669,1764108655096,-500.0,0.00038356,8]
[394907670,1764108655106,-500.0,0.00038356,8]
[394907671,1764108655115,-507.3705306,0.00038356,8]
[394907672,1764108655125,-500.0,0.00038356,8]
[394907673,1764108655134,-271.74868786,0.00038356,2]
[394907674,1764108655143,-1000.0,0.00038356,5]
[394907675,1764108655153,-603.04,0.000384,14]
[394907676,1764108655162,-500.0,0.00038629,2]
[394907677,1764108655171,-500.0,0.0003863,2]
[394907678,1764108655180,-500.0,0.0003863,2]
[394907679,1764108655189,-500.0,0.0003863,8]
[394907680,1764108655199,-500.0,0.0003863,8]
[394907681,1764108655208,-500.0,0.0003863,8]
[394907682,1764108655218,-500.0,0.0003863,2]
[394907683,1764108655227,-1405.63,0.0003863,8]
[394907684,1764108655237,-500.0,0.0003863,8]
[394907685,1764108655246,-372.9393071,0.0003863,8]
[394907686,1764108655256,-500.0,0.0003863,120]
[394907687,1764108655265,-1126.44,0.0003863,8]
[394907688,1764108655274,-500.0,0.0003863,8]
[394907689,1764108655283,-588.42,0.0003863,8]
[394907690,1764108655292,-500.0,0.0003863,8]
[394907691,1764108655301,-500.0,0.0003863,8]
[394907692,1764108655310,-414.44500216,0.0003863,8]
[394907693,1764108655320,-393.68,0.0003863,8]
[394907694,1764108655329,-500.0,0.0003863,8]
[394907695,1764108655338,-469.94,0.0003863,8]
[394907696,1764108655348,-365.77,0.0003863,8]
[394907697,1764108655357,-393.08831063,0.0003863,8]
[394907698,1764108655366,-500.0,0.0003863,8]
[394907699,1764108655375,-315.17,0.0003863,8]
[394907700,1764108655384,-743.49,0.0003863,8]
[394907701,1764108655394,-872.66,0.0003863,8]
[394907702,1764108655403,-449.37938244,0.0003863,8]
[394907703,1764108655412,-500.0,0.0003863,8]
[394907704,1764108655421,-500.0,0.0003863,120]
[394907705,1764108655431,-199.0,0.0003863,12]
[394907706,1764108655443,-1067.59,0.0003863,8]
[394907707,1764108655453,-500.0,0.0003863,8]
[394907708,1764108655464,-1701.71,0.0003863,8]
[394907709,1764108655474,-421.54361741,0.0003863,8]
[394907710,1764108655485,-500.0,0.0003863,8]
[394907711,1764108655494,-500.0,0.0003863,2]
[394907712,1764108655504,-233.18,0.0003863,8]
[394907713,1764108655514,-500.0,0.0003863,2]
[394907714,1764108655528,-500.0,0.0003863,2]
[394907715,1764108655537,-500.0,0.0003863,8]
[394907716,1764108655546,-1836.96,0.0003863,8]
[394907717,1764108655555,-500.0,0.0003863,8]
[394907718,1764108655566,-779.8,0.0003863,2]
[394907719,1764108655576,-300.0,0.0003863,2]
[394907720,1764108655586,-1722.3,0.0003863,8]
[394907721,1764108655595,-500.0,0.0003863,8]
[394907722,1764108655608,-964.36,0.0003863,2]
[394907723,1764108655619,-507.16,0.0003863,8]
[394907724,1764108655628,-500.0,0.0003863,8]
[394907725,1764108655639,-500.0,0.0003863,8]
[394907726,1764108655648,-11006.19,0.0003863,8]
[394907727,1764108655658,-500.0,0.0003863,8]
[394907728,1764108655668,-500.0,0.0003863,8]
[394907729,1764108655678,-500.0,0.0003863,8]
[394907730,1764108655688,-499.999999,0.0003863,8]
[394907731,1764108655698,-154.1,0.0003863,8]
[394907732,1764108655709,-500.0,0.0003863,8]
[394907733,1764108655719,-255.18,0.0003863,8]
[394907734,1764108655728,-300.0,0.0003863,2]
[394907735,1764108655739,-795.28,0.0003863,8]
[394907736,1764108655749,-367.94677771,0.0003863,8]
[394907737,1764108655759,-649.4,0.0003863,8]
[394907738,1764108655769,-9916.91,0.0003863,8]
[394907739,1764108655779,-211.26,0.0003863,8]
[394907740,1764108655790,-185.51903109,0.0003863,8]
[394907741,1764108655800,-500.0,0.0003863,8]
[394907742,1764108655810,-500.0,0.0003863,2]
[394907743,1764108655822,-500.0,0.0003863,8]
[394907744,1764108655833,-500.0,0.0003863,8]
[394907745,1764108655842,-500.0,0.0003863,8]
[394907746,1764108655852,-418.6517101,0.0003863,8]
[394907747,1764108655861,-500.0,0.000387,120]
[394907748,1764108655870,-500.0,0.000387,120]
[394907749,1764108655880,-500.0,0.000387,120]
[394907750,1764108655890,-500.0,0.000387,120]
[394907751,1764108655899,-500.0,0.000387,120]
[394907752,1764108655908,-500.0,0.000387,120]
[394907753,1764108655918,-500.0,0.000387,120]
[394907754,1764108655927,-500.0,0.000387,120]
[394907755,1764108655937,-500.0,0.000387,120]
[394907756,1764108655947,-500.0,0.000387,120]
[394907757,1764108655957,-500.0,0.000387,120]
[394907758,1764108655966,-500.0,0.000387,120]
[394907759,1764108655976,-500.0,0.000387,120]
[394907760,1764108655985,-500.0,0.000387,120]
[394907761,1764108655995,-500.0,0.000387,120]
[394907762,1764108656005,-500.0,0.000387,120]
[394907763,1764108656015,-500.0,0.000387,120]
[394907764,1764108656024,-500.0,0.000387,120]
[394907765,1764108656034,-500.0,0.000387,120]
[394907766,1764108656044,-500.0,0.000387,120]
[394907767,1764108656054,-972.8808678,0.00038767,5]
[394907768,1764108656066,-885.9936102,0.000388,14]
[394907769,1764108656075,-5058.15,0.000388,14]
[394907770,1764108656085,-551.34,0.00038837,2]
[394907771,1764108656094,-150.0,0.00038837,2]
[394907772,1764108656104,-551.34,0.00038837,2]
[394907773,1764108656114,-551.34,0.00038837,2]
[394907774,1764108656124,-150.0,0.00038837,2]
[394907775,1764108656135,-551.34,0.00038837,2]
[394907776,1764108656145,-551.34,0.00038837,2]
[394907777,1764108656155,-151.03336104,0.00038857,15]
[394907778,1764108656284,-1003.57,0.0003888,120]
[394907779,1764108656293,-472.9193,0.00038888,30]
[394907780,1764108656302,-500.0,0.00038904,2]
[394907781,1764108656311,-501.95630248,0.00038904,2]
[394907782,1764108656320,-500.0,0.00038904,8]
[394907783,1764108656329,-521.87646364,0.00038904,8]
[394907784,1764108656338,-500.0,0.00038904,8]
[394907785,1764108656347,-500.0,0.00038904,2]
[394907786,1764108656356,-1405.63,0.00038904,8]
[394907787,1764108656365,-500.0,0.00038904,8]
[394907788,1764108656374,-1126.44,0.00038904,8]
[394907789,1764108656383,-500.0,0.00038904,8]
[394907790,1764108656392,-588.42,0.00038904,8]
[394907791,1764108656402,-607.29087338,0.00038904,8]
[394907792,1764108656411,-500.0,0.00038904,8]
[394907793,1764108656421,-500.0,0.00038904,8]
[394907794,1764108656430,-228.4544921,0.00038904,8]
[394907795,1764108656440,-743.49,0.00038904,8]
[394907796,1764108656450,-872.66,0.00038904,8]
[394907797,1764108656459,-387.37569134,0.00038904,8]
[394907798,1764108656468,-500.0,0.00038904,120]
[394907799,1764108656478,-1067.59,0.00038904,8]
[394907800,1764108656489,-500.0,0.00038904,8]
[394907801,1764108656500,-1701.71,0.00038904,8]
[394907802,1764108656508,-500.0,0.00038904,8]
[394907803,1764108656524,-500.0,0.00038904,2]
[394907804,1764108656534,-204.18291778,0.00038904,2]
[394907805,1764108656544,-500.0,0.00038904,2]
[394907806,1764108656553,-170.62,0.00038904,8]
[394907807,1764108656563,-1836.96,0.00038904,8]
[394907808,1764108656572,-500.0,0.00038904,8]
[394907809,1764108656581,-779.8,0.00038904,2]
[394907810,1764108656590,-300.0,0.00038904,2]
[394907811,1764108656599,-1722.3,0.00038904,8]
[394907812,1764108656609,-500.0,0.00038904,8]
[394907813,1764108656618,-964.36,0.00038904,2]
[394907814,1764108656627,-500.0,0.00038904,8]
[394907815,1764108656636,-624.91081837,0.00038904,8]
[394907816,1764108656646,-11006.19,0.00038904,8]
[394907817,1764108656655,-243.47524721,0.00038904,8]
[394907818,1764108656664,-500.0,0.00038904,8]
[394907819,1764108656673,-340.56317152,0.00038904,8]
[394907820,1764108656682,-300.0,0.00038904,2]
[394907821,1764108656691,-795.28,0.00038904,8]
[394907822,1764108656700,-9916.91,0.00038904,8]
[394907823,1764108656709,-500.0,0.00038904,8]
[394907824,1764108656718,-500.0,0.00038904,2]
[394907825,1764108656727,-493.73947238,0.00038904,8]
[394907826,1764108656736,-500.0,0.00038904,8]
[394907827,1764108656745,-500.0,0.00038904,8]
[394907828,1764108656754,-50000.0,0.00039,39]
[394907829,1764108656763,-9432.39119168,0.00039,14]
[394907830,1764108656771,-2676.75573795,0.00039,2]
[394907831,1764108656780,-6299.999999,0.00039,2]
[394907832,1764108656789,-23635.74017763,0.00039,2]
[394907833,1764108656799,-1000.0,0.00039,30]
[394907834,1764108656808,-427.01065334,0.00039,120]
[394907835,1764108656817,-171.2674813,0.00039,5]
[394907836,1764108656826,-190.58758904,0.00039048,7]
[394907837,1764108656836,-1852.86533732,0.00039056,2]
[394907838,1764108656845,-603.04,0.000391,14]
[394907839,1764108656853,-500.0,0.00039178,2]
[394907840,1764108656862,-500.0,0.00039178,8]
[394907841,1764108656871,-519.23415077,0.00039178,8]
[394907842,1764108656880,-500.0,0.00039178,2]
[394907843,1764108656889,-1405.63,0.00039178,8]
[394907844,1764108656898,-500.0,0.00039178,8]
[394907845,1764108656907,-1126.44,0.00039178,8]
[394907846,1764108656916,-500.0,0.00039178,8]
[394907847,1764108656925,-588.42,0.00039178,8]
[394907848,1764108656934,-511.57710936,0.00039178,8]
[394907849,1764108656943,-263.06587272,0.00039178,8]
[394907850,1764108656952,-743.49,0.00039178,8]
[394907851,1764108656961,-872.66,0.00039178,8]
[394907852,1764108656970,-615.97,0.00039178,120]
[394907853,1764108656979,-199.0,0.00039178,13]
[394907854,1764108656988,-1067.59,0.00039178,8]
[394907855,1764108656998,-500.0,0.00039178,8]
[394907856,1764108657007,-1701.71,0.00039178,8]
[394907857,1764108657015,-500.0,0.00039178,8]
[394907858,1764108657026,-500.0,0.00039178,2]
[394907859,1764108657037,-325.99383177,0.00039178,2]
[394907860,1764108657046,-1836.96,0.00039178,8]
[394907861,1764108657056,-500.0,0.00039178,8]
[394907862,1764108657065,-779.8,0.00039178,2]
[394907863,1764108657075,-300.0,0.00039178,2]
[394907864,1764108657084,-1722.3,0.00039178,8]
[394907865,1764108657093,-511.81836986,0.00039178,8]
[394907866,1764108657103,-964.36,0.00039178,2]
[394907867,1764108657112,-500.0,0.00039178,8]
[394907868,1764108657122,-11006.19,0.00039178,8]
[394907869,1764108657132,-500.0,0.00039178,8]
[394907870,1764108657142,-300.0,0.00039178,2]
[394907871,1764108657151,-795.28,0.00039178,8]
[394907872,1764108657161,-9916.91,0.00039178,8]
[394907873,1764108657171,-500.0,0.00039178,8]
[394907874,1764108657181,-500.0,0.00039178,2]
[394907875,1764108657191,-500.0,0.00039178,8]
[394907876,1764108657199,-498.7,0.00039178,8]
[394907877,1764108657209,-152.0,0.00039288,4]
[394907878,1764108657220,-337.58810388,0.0003939,120]
[394907879,1764108657229,-500.0,0.00039399,2]
[394907880,1764108657239,-20000.0,0.000394,120]
[394907881,1764108657250,-807.27166745,0.000394,2]
[394907882,1764108657260,-615.0,0.00039425,120]
[394907883,1764108657269,-16782.92776091,0.0003943,120]
[394907884,1764108657278,-20000.0,0.0003944,120]
[394907885,1764108657288,-20000.0,0.0003945,120]
[394907886,1764108657297,-500.0,0.00039452,2]
[394907887,1764108657306,-500.0,0.00039452,8]
[394907888,1764108657315,-500.0,0.00039452,2]
[394907889,1764108657324,-1405.63,0.00039452,8]
[394907890,1764108657333,-500.0,0.00039452,8]
[394907891,1764108657343,-1126.44,0.00039452,8]
[394907892,1764108657353,-500.0,0.00039452,8]
[394907893,1764108657362,-588.42,0.00039452,8]
[394907894,1764108657372,-743.49,0.00039452,8]
[394907895,1764108657382,-872.66,0.00039452,8]
[394907896,1764108657391,-1067.59,0.00039452,8]
[394907897,1764108657400,-500.0,0.00039452,8]
[394907898,1764108657409,-1701.71,0.00039452,8]
[394907899,1764108657418,-500.0,0.00039452,8]
[394907900,1764108657427,-500.0,0.00039452,2]
[394907901,1764108657436,-1836.96,0.00039452,8]
[394907902,1764108657446,-500.0,0.00039452,8]
[394907903,1764108657455,-779.8,0.00039452,2]
[394907904,1764108657463,-300.0,0.00039452,2]
[394907905,1764108657472,-1722.3,0.00039452,8]
[394907906,1764108657481,-964.36,0.00039452,2]
[394907907,1764108657490,-500.0,0.00039452,8]
[394907908,1764108657500,-11006.19,0.00039452,8]
[394907909,1764108657508,-500.0,0.00039452,8]
[394907910,1764108657518,-300.0,0.00039452,2]
[394907911,1764108657528,-795.28,0.00039452,8]
[394907912,1764108657537,-9916.91,0.00039452,8]
[394907913,1764108657546,-500.0,0.00039452,8]
[394907914,1764108657555,-500.0,0.00039452,2]
[394907915,1764108657564,-500.0,0.00039452,8]
[394907916,1764108657575,-20000.0,0.0003946,120]
[394907917,1764108657584,-20000.0,0.0003947,120]
[394907918,1764108657594,-12396.65042172,0.00039478,2]
[394907919,1764108657605,-20000.0,0.0003948,120]
[394907920,1764108657614,-2941.35535237,0.0003949,120]
[394907921,1764108657919,-903.245,0.00025903,2]
[394907922,1764108657928,-479.24,0.00029041,2]
[394907923,1764108657937,-500.0,0.00038356,8]
[394907924,1764108657947,-500.0,0.0003863,8]
[394907925,1764108657955,-551.34,0.00038837,2]
[394907926,1764108657964,-334.37816218,0.00038904,8]
[394907927,1764108658047,-165.62183782,0.00038904,8]
[394907928,1764108658058,-500.0,0.00039178,8]
[394907929,1764108658068,-334.37816218,0.00039452,8]
[394907930,1764108658079,-165.62183782,0.00039452,8]
[394907931,1764108658088,-3221.89603563,0.0003949,120]
[394907932,1764108658099,-1657.99177851,0.0003949,120]
[394907933,1764108658112,-2435.31727346,0.0003949,120]
[394907935,1764108666130,5000.0,0.000227,120]
[394907936,1764108666227,5000.0,0.00022136,120]
[394907937,1764108667081,195.0,0.000227,120]
[394907938,1764108667228,195.0,0.00022136,120]
[394907939,1764108668327,2500.0,0.000227,120]
[394907940,1764108668352,2500.0,0.00022136,120]
[394908193,1764109831765,-195.0,0.00016899,2]
[394908194,1764109831774,-300.0,0.00016899,2]
[394908195,1764109831783,-300.0,0.00016899,2]
[394908196,1764109831792,-964.0,0.00016899,2]
[394908199,1764109831801,-550.0,0.00016899,2]
[394908201,1764109831810,-300.0,0.00016899,2]
[394908203,1764109831819,-195.0,0.00016899,2]
[394908205,1764109831828,-300.0,0.00016899,2]
[394908206,1764109831837,-300.0,0.00016899,2]
[394908207,1764109831848,-260.8937,0.000169,2]
[394908208,1764109831859,-29880.76994228,0.000169,10]
[394908209,1764109831947,-635.5909998,0.000169,10]
[394908210,1764109831959,-391.2107439,0.000169,10]
[394908211,1764109831970,-1905.14323361,0.000169,10]
[394908212,1764109831981,-1335.80895032,0.000169,10]
[394908213,1764109832010,-3369.95194618,0.000169,10]
[394908214,1764109832024,-566.25609508,0.000169,10]
[394908215,1764109832035,-561.48275335,0.000169,10]
[394908221,1764109837876,-1446.62639381,0.000169,10]
[394908405,1764109839952,-1319.57724698,0.000169,10]
[394908407,1764109839965,-432.93346726,0.000169,10]
[394908409,1764109839975,-4472.3548304,0.000169,10]
[394908427,1764109840134,-34905.77539703,0.000169,10]
[394908430,1764109840144,-209.3641883,0.000169,2]
[394908432,1764109840153,-420.0,0.00018459,2]
[394908434,1764109840163,-195.0,0.00018588,2]
[394908436,1764109840172,-195.0,0.00018588,2]
[394908438,1764109840183,-300.0,0.00018588,2]
[394908440,1764109840192,-13275.9033852,0.0002,5]
[394908442,1764109840202,-587.0,0.00020164,2]
[394908444,1764109840211,-427.01065334,0.00020387,2]
[394908446,1764109840220,-823.0,0.00022026,2]
[394908448,1764109840229,-1192.0,0.00022294,2]
[394908450,1764109840238,-908.0,0.00022294,2]
[394908452,1764109840247,-1602.0,0.00022294,2]
[394908454,1764109840256,-3438.0,0.00022294,2]
[394908456,1764109840265,-609.0,0.00022294,2]
[394908458,1764109840274,-250.0,0.00022328,2]
[394908460,1764109840287,-19648.35924745,0.00023265,2]
[394908462,1764109840296,-1013.57043588,0.00024,2]
[394908464,1764109840305,-1152.0,0.00024059,2]
[394908466,1764109840315,-153.0,0.00024658,2]
[394908468,1764109840324,-366.75242155,0.0002498,2]
[394908470,1764109840333,-414.79,0.0002498,2]
[394908472,1764109840343,-575.3376,0.00025041,10]
[394908474,1764109840352,-289.0,0.0002507,2]
[394908476,1764109840361,-219.0,0.00025263,2]
[394908478,1764109840370,-908.0,0.00025294,2]
[394908480,1764109840380,-471.024,0.00028294,2]
[394908483,1764109840390,-401.701823,0.0003,2]
[394908486,1764109840399,-453.74837147,0.00030361,2]
[394908488,1764109840408,-3587.0,0.00031295,2]
[394908490,1764109840418,-1000.0,0.00033375,7]
[394908492,1764109840427,-150.0,0.0003428,2]
[394908494,1764109840436,-265.628,0.00034393,38]
[394908496,1764109840445,-216.03,0.00034674,2]
[394908498,1764109840454,-150.0,0.00034807,2]
[394908500,1764109840464,-193.96917022,0.0003504,30]
[394908502,1764109840473,-200.0,0.00035178,2]
[394908504,1764109840482,-240.24,0.00035229,2]
[394908506,1764109840493,-2274.68,0.0003535,2]
[394908508,1764109840502,-592.02251643,0.00035529,2]
[394908510,1764109840511,-150.0,0.00035803,7]
[394908512,1764109840520,-216.03,0.00035974,2]
[394908514,1764109840529,-1000.0,0.00036131,7]
[394908516,1764109840538,-500.0,0.00036226,2]
[394908518,1764109840547,-556.64313948,0.00036241,30]
[394908521,1764109840556,-1000.0,0.00036368,3]
[394908523,1764109840565,-1000.0,0.00036985,7]
[394908525,1764109840575,-216.03,0.00037274,2]
[394908527,1764109840583,-500.0,0.00037834,7]
[394908528,1764109840593,-479.01,0.00037878,2]
[394908531,1764109840603,-1000.0,0.00037999,7]
[394908533,1764109840612,-1000.0,0.00037999,7]
[394908534,1764109840621,-1000.0,0.00037999,7]
[394908536,1764109840630,-1000.0,0.00038081,7]
[394908539,1764109840639,-1239.66504219,0.00038194,2]
[394908541,1764109840648,-786.30239664,0.00038294,2]
[394908542,1764109840657,-500.0,0.00038356,8]
[394908545,1764109840666,-150.0,0.00038356,8]
[394908547,1764109840678,-152.09631625,0.00038356,8]
[394908549,1764109840686,-150.0,0.00038356,8]
[394908551,1764109840696,-150.0,0.00038356,8]
[394908553,1764109840705,-150.0,0.00038356,8]
[394908555,1764109840714,-150.0,0.00038356,8]
[394908557,1764109840723,-151.58399754,0.00038356,8]
[394908559,1764109840733,-150.0,0.00038356,8]
[394908561,1764109840742,-150.0,0.00038356,8]
[394908563,1764109840751,-150.0,0.00038356,8]
[394908565,1764109840760,-150.0,0.00038356,8]
[394908567,1764109840769,-200.6133939,0.00038356,8]
[394908569,1764109840778,-150.0,0.00038356,8]
[394908571,1764109840787,-151.9337633,0.00038356,8]